bitfinex/quotes_BTCUSD_20251019
["timestamp","ask_amount","ask_price","bid_price","bid_amount"]
[1760909633965,3.52866221,108890.0,108880.0,99.77337233]
[1760909635731,3.50334714,108890.0,108880.0,99.77337233]
[1760909636206,3.52866221,108890.0,108880.0,99.77337233]
[1760909637523,3.50334714,108890.0,108880.0,99.77337233]
[1760909637923,3.52866221,108890.0,108880.0,99.77337233]
[1760909639361,3.50334714,108890.0,108880.0,99.77337233]
[1760909639705,3.52866221,108890.0,108880.0,99.77337233]
[1760909641749,3.50334714,108890.0,108880.0,99.77337233]
[1760909642052,3.52866221,108890.0,108880.0,99.77337233]
[1760909642465,0.52866221,108890.0,108880.0,99.77337233]
[1760909646115,0.50334714,108890.0,108880.0,99.77337233]
[1760909646316,0.52866221,108890.0,108880.0,99.77337233]
[1760909648316,0.50334714,108890.0,108880.0,99.77337233]
[1760909648748,0.52866221,108890.0,108880.0,99.77337233]
[1760909649753,0.50334714,108890.0,108880.0,99.77337233]
[1760909653650,0.16174618,108890.0,108880.0,99.77337233]
[1760909653875,0.12552723,108890.0,108880.0,99.77337233]
[1760909654043,0.46552723,108890.0,108880.0,99.80099828]
[1760909656312,0.46712807,108890.0,108880.0,99.80099828]
[1760909656736,0.46552723,108890.0,108880.0,99.77337233]
[1760909659094,0.4908423,108890.0,108880.0,99.77337233]
[1760909659496,0.49941769,108890.0,108880.0,99.77337233]
[1760909659893,0.50101856,108890.0,108880.0,99.77337233]
[1760909667154,3.50101856,108890.0,108880.0,99.77337233]
[1760909669462,3.50100062,108890.0,108880.0,99.77337233]
[1760909673843,3.47568555,108890.0,108880.0,99.77337233]
[1760909674249,3.50238144,108890.0,108880.0,99.77337233]
[1760909674446,3.50238515,108890.0,108880.0,99.77337233]
[1760909676993,3.47568926,108890.0,108880.0,99.77337233]
[1760909677220,3.50238515,108890.0,108880.0,99.77337233]
[1760909678559,3.48523214,108890.0,108880.0,99.77337233]
[1760909678774,3.50239781,108890.0,108880.0,99.77337233]
[1760909679476,3.4784514,108890.0,108880.0,99.77337233]
[1760909682686,3.4784514,108890.0,108880.0,99.7734807]
[1760909684651,3.47845543,108890.0,108880.0,99.7734807]
[1760909687491,3.47845543,108890.0,108880.0,99.77337233]
[1760909693960,3.45175954,108890.0,108880.0,99.77337233]
[1760909694357,3.47845543,108890.0,108880.0,99.77337233]
[1760909698975,3.46987633,108890.0,108880.0,99.77337233]
[1760909703552,3.46971393,108890.0,108880.0,99.77337233]
[1760909709286,3.44301804,108890.0,108880.0,99.77337233]
[1760909712755,3.20244216,108890.0,108880.0,99.77337233]
[1760909717419,3.21102632,108890.0,108880.0,99.77337233]
[1760909719791,3.01861511,108890.0,108880.0,99.77337233]
[1760909720039,0.20942545,108890.0,108880.0,99.77337233]
[1760909720364,3.21102631,108890.0,108880.0,99.77337233]
[1760909722792,3.55102631,108890.0,108880.0,99.77337233]
[1760909734345,3.55102631,108890.0,108880.0,99.8009984]
[1760909734535,3.55102631,108890.0,108880.0,99.77337233]
[1760909735010,3.55102631,108890.0,108880.0,99.8009984]
[1760909738492,3.55102631,108890.0,108880.0,99.77337233]
[1760909738954,0.54244215,108890.0,108880.0,99.77337233]
[1760909739215,0.54244215,108890.0,108880.0,99.80099647]
[1760909740966,0.54244215,108890.0,108880.0,99.80199647]
[1760909749179,0.52527245,108890.0,108880.0,99.80199647]
[1760909763731,0.52527245,108890.0,108880.0,99.98568493]
[1760909764055,0.00160086,108890.0,108880.0,100.10084493]
[1760909764610,0.18439072,108900.0,108880.0,100.10084493]
[1760909764816,0.54154009,108900.0,108890.0,0.01836715]
[1760909765022,0.52439072,108900.0,108890.0,0.01836715]
[1760909765227,0.52439072,108900.0,108890.0,0.04598928]
[1760909767304,0.18439072,108900.0,108890.0,0.21129372]
[1760909768274,0.000736,108900.0,108890.0,0.21229372]
[1760909768514,0.18439072,108900.0,108890.0,0.21229372]
[1760909775760,0.000736,108900.0,108890.0,0.21229372]
[1760909777078,0.340736,108900.0,108890.0,0.21229372]
[1760909780588,0.19442399,108910.0,108890.0,0.21229372]
[1760909781248,0.19442399,108910.0,108900.0,0.20202019]
[1760909781425,0.19442399,108910.0,108900.0,0.18365472]
[1760909781661,0.19477354,108910.0,108900.0,0.18365472]
[1760909781865,0.19477354,108910.0,108900.0,0.21127352]
[1760909782504,0.53477354,108910.0,108900.0,0.21127352]
[1760909783135,0.34194825,108910.0,108900.0,0.21127352]
[1760909783349,0.52561679,108910.0,108900.0,0.21127352]
[1760909783822,0.34194825,108910.0,108900.0,0.21127352]
[1760909784440,0.30930056,108910.0,108900.0,0.32743352]
[1760909784619,0.19464205,108920.0,108910.0,0.18363786]
[1760909784799,0.19304153,108920.0,108910.0,0.18363786]
[1760909785163,0.19304153,108920.0,108910.0,0.21125455]
[1760909785558,0.00942053,108920.0,108910.0,0.21125455]
[1760909786388,0.34023948,108920.0,108910.0,0.21125455]
[1760909786779,0.00023948,108920.0,108910.0,0.21125455]
[1760909788050,0.34023948,108920.0,108910.0,0.21125455]
[1760909788451,0.34023948,108920.0,108910.0,0.21225455]
[1760909789998,0.00023948,108920.0,108910.0,0.31225455]
[1760909790143,0.34023948,108920.0,108910.0,0.31225455]
[1760909790345,0.34058898,108920.0,108910.0,0.31225455]
[1760909791240,0.0099548,108920.0,108910.0,0.31225455]
[1760909792815,0.3499548,108920.0,108910.0,0.31225455]
[1760909795847,0.0099548,108920.0,108910.0,0.74718281]
[1760909797118,0.0099548,108920.0,108910.0,0.74618281]
[1760909797334,0.0099548,108920.0,108910.0,0.74818281]
[1760909797784,0.44901157,109000.0,108910.0,0.74818281]
[1760909797785,0.19355772,108980.0,108950.0,0.183568]
[1760909798027,0.19355772,108980.0,108960.0,0.20190894]
[1760909798028,0.04008371,108970.0,108960.0,0.20190894]
[1760909798266,0.04008371,108970.0,108950.0,0.73366802]
[1760909798267,0.19310363,108970.0,108950.0,0.29873976]
[1760909798493,0.19310363,108970.0,108960.0,0.02760337]
[1760909798915,0.53310363,108970.0,108960.0,0.02760337]
[1760909800194,0.53470362,108970.0,108960.0,0.02760337]
[1760909804467,0.53470362,108970.0,108960.0,0.04595872]
[1760909804873,0.53645024,108970.0,108960.0,0.04595872]
[1760909810629,0.00334661,108970.0,108960.0,1.21480883]
[1760909810827,0.00174662,108970.0,108960.0,1.75830882]
[1760909811043,0.01118743,108970.0,108960.0,0.77667838]
[1760909811245,0.01118743,108970.0,108960.0,0.89271838]
[1760909811658,0.01118743,108970.0,108960.0,1.32764664]
[1760909812049,0.01118743,108970.0,108960.0,0.89271838]
[1760909812458,0.00174662,108970.0,108960.0,0.89271838]
[1760909812794,0.00174662,108970.0,108960.0,0.89471838]
[1760909813020,0.00174662,108970.0,108960.0,0.89671838]
[1760909813217,0.00174662,108970.0,108960.0,0.89471838]
[1760909813409,0.00174662,108970.0,108960.0,0.89371838]
[1760909813611,0.00174662,108970.0,108960.0,0.89571838]
[1760909814909,0.00174662,108970.0,108960.0,1.33064664]
[1760909829775,0.00174662,108970.0,108960.0,1.47854664]
[1760909840135,0.00174662,108970.0,108960.0,1.04361838]
[1760909840577,0.00174662,108970.0,108960.0,1.14361838]
[1760909842822,0.00174662,108970.0,108960.0,1.14290723]
[1760909844050,0.00174662,108970.0,108960.0,0.70869012]
[1760909851568,0.00174662,108970.0,108960.0,1.14290723]
[1760909852494,0.00174662,108970.0,108960.0,0.70869012]
[1760909854863,0.00174662,108970.0,108960.0,1.14290723]
[1760909856841,0.53426129,109000.0,108980.0,0.18350952]
[1760909857045,0.56005248,109000.0,108990.0,0.0183503]
[1760909858274,0.56005248,109000.0,108990.0,0.01839962]
[1760909859912,0.5696259,109000.0,108990.0,0.01839962]
[1760909864194,0.5696259,109000.0,108990.0,0.20190269]
[1760909864544,0.57067335,109000.0,108990.0,0.20190269]
[1760909868924,0.21989969,109000.0,108990.0,0.20190269]
[1760909869246,0.23067335,109000.0,108990.0,0.20190269]
[1760909869473,0.23067335,109000.0,108990.0,0.01839962]
[1760909877849,0.23067666,109000.0,108990.0,0.01839962]
[1760909878851,0.23067666,109000.0,108990.0,0.20190269]
[1760909879049,0.03801472,109000.0,108990.0,0.20190269]
[1760909879552,0.02082059,109000.0,108990.0,0.20190269]
[1760909879782,0.01222022,109000.0,108990.0,0.18355239]
[1760909880269,0.01222022,109000.0,108990.0,0.20290269]
[1760909880464,0.01222022,109000.0,108990.0,0.18555239]
[1760909880915,0.01222022,109000.0,108990.0,0.02039962]
[1760909880916,0.20430878,109000.0,108990.0,0.02039962]
[1760909881308,3.22151614,109000.0,108990.0,0.02039962]
[1760909882810,3.22151614,109000.0,108990.0,0.20390269]
[1760909883016,3.22151614,109000.0,108990.0,0.18555239]
[1760909884366,3.22151614,109000.0,108990.0,0.00204932]
[1760909885181,3.22151614,109000.0,108990.0,0.18555239]
[1760909890478,3.21991679,109000.0,108990.0,0.18555239]
[1760909892339,3.20270943,109000.0,108990.0,0.18555239]
[1760909893095,3.0192232,109000.0,108990.0,0.18555239]
[1760909893408,3.20270943,109000.0,108990.0,0.18555239]
[1760909897929,3.20270943,109000.0,108990.0,0.21314837]
[1760909899583,3.20270943,109000.0,108990.0,0.0296453]
[1760909899927,3.20270943,109000.0,108990.0,0.0479956]
[1760909900465,3.20430878,109000.0,108990.0,0.0479956]
[1760909908631,3.20430675,109000.0,108990.0,0.0479956]
[1760909909874,3.20430675,109000.0,108990.0,0.23149867]
[1760909910074,3.20430675,109000.0,108990.0,0.21314837]
[1760909910834,3.20430675,109000.0,108990.0,0.0296453]
[1760909915123,3.03483922,109000.0,108990.0,0.0296453]
[1760909915323,3.19368588,109000.0,108990.0,0.0296453]
[1760909915621,0.18508558,109000.0,108990.0,0.0296453]
[1760909915859,0.18508558,109000.0,108990.0,0.0479956]
[1760909918429,0.20224797,109000.0,108990.0,0.0479956]
[1760909918833,0.21084762,109000.0,108990.0,0.0479956]
[1760909923838,0.55084762,109000.0,108990.0,0.0296453]
[1760909930508,0.55085263,109000.0,108990.0,0.0296453]
[1760909931999,0.3497601,109000.0,108990.0,0.0296453]
[1760909932209,0.53324633,109000.0,108990.0,0.0479956]
[1760909932393,0.53484565,109000.0,108990.0,0.0479956]
[1760909932836,0.53324633,109000.0,108990.0,0.0479956]
[1760909947951,0.53324523,109000.0,108990.0,0.0479956]
[1760909951959,0.53324523,109000.0,108990.0,0.0296453]
[1760909953739,0.53324523,109000.0,108990.0,0.0286453]
[1760909954182,0.53324523,109000.0,108990.0,0.0276453]
[1760909968556,0.53324358,109000.0,108990.0,0.0276453]
[1760909977136,0.53324358,109000.0,108990.0,0.0459956]
[1760909979347,0.53324358,109000.0,108990.0,0.0276453]
[1760909984056,0.53324293,109000.0,108990.0,0.0276453]
[1760909999465,0.53324443,109000.0,108990.0,0.0276453]
[1760910001326,3.53324443,109000.0,108990.0,0.0276453]
[1760910001468,3.55044459,109000.0,108990.0,0.0276453]
[1760910011027,3.56483543,109000.0,108990.0,0.0276453]
[1760910012019,3.56487543,109000.0,108990.0,0.0276453]
[1760910016214,3.39853997,109000.0,108990.0,0.0276453]
[1760910019198,3.4350387,109000.0,108990.0,0.0276453]
[1760910019497,3.44942952,109000.0,108990.0,0.0276453]
[1760910020044,3.2602187,109000.0,108990.0,0.0276453]
[1760910027422,3.07673247,109000.0,108990.0,0.0276453]
[1760910027629,3.2602187,109000.0,108990.0,0.0276453]
[1760910028523,3.26020319,109000.0,108990.0,0.0276453]
[1760910041195,3.60020319,109000.0,108990.0,0.0276453]
[1760910043822,3.60020447,109000.0,108990.0,0.0276453]
[1760910059045,3.60018788,109000.0,108990.0,0.0276453]
[1760910062424,3.60018785,109000.0,108990.0,0.0276453]
[1760910072725,3.60018862,109000.0,108990.0,0.0276453]
[1760910075561,3.4267331,109000.0,108990.0,0.0276453]
[1760910075756,3.5857978,109000.0,108990.0,0.0276453]
[1760910081044,3.60178767,109000.0,108990.0,0.0276453]
[1760910092773,0.60178767,109000.0,108990.0,0.0276453]
[1760910095638,3.60178767,109000.0,108990.0,0.0276453]
[1760910113702,3.60179311,109000.0,108990.0,0.0276453]
[1760910118909,3.60179268,109000.0,108990.0,0.0276453]
[1760910135221,3.56525395,109000.0,108990.0,0.0276453]
[1760910138588,3.59623933,109000.0,108990.0,0.0276453]
[1760910147583,3.57046148,109000.0,108990.0,0.0276453]
[1760910147790,3.59624378,109000.0,108990.0,0.0276453]
[1760910148884,3.59624367,109000.0,108990.0,0.0276453]
[1760910152845,3.59624361,109000.0,108990.0,0.0276453]
[1760910159222,3.60945315,109000.0,108990.0,4.932e-05]
[1760910159432,3.60945315,109000.0,108990.0,0.02764957]
[1760910159643,3.60785399,109000.0,108990.0,0.02764957]
[1760910159822,3.58025374,109000.0,108990.0,0.02764957]
[1760910160582,3.58025374,109000.0,108990.0,0.01095409]
[1760910160786,3.73844467,109000.0,108990.0,0.01095409]
[1760910161011,3.73844467,109000.0,108960.0,0.10073545]
[1760910161012,0.52353675,108970.0,108960.0,0.10073545]
[1760910161234,0.54077415,108970.0,108960.0,0.12833931]
[1760910161681,0.56837826,108970.0,108960.0,0.12833931]
[1760910162306,0.58277204,108970.0,108960.0,0.12833931]
[1760910162650,0.58277204,108970.0,108960.0,0.10073545]
[1760910162651,0.58437141,108970.0,108960.0,0.10073545]
[1760910174421,0.56718328,108970.0,108960.0,0.10073545]
[1760910178250,0.58431282,108970.0,108960.0,0.10073545]
[1760910178441,0.58431389,108970.0,108960.0,0.10073545]
[1760910181342,0.39732023,108970.0,108960.0,0.10073545]
[1760910182343,0.58085698,108970.0,108960.0,0.10073545]
[1760910186153,0.58943368,108970.0,108960.0,0.10073545]
[1760910186990,0.58943394,108970.0,108960.0,0.10073545]
[1760910191222,3.58943394,108970.0,108960.0,0.10073545]
[1760910202849,3.25289085,108970.0,108960.0,0.10073545]
[1760910204749,3.59289085,108970.0,108960.0,0.10073545]
[1760910209014,3.59295133,108970.0,108960.0,0.10073545]
[1760910230906,3.56534722,108970.0,108960.0,0.10073545]
[1760910242103,0.56534722,108970.0,108960.0,0.10073545]
[1760910242305,0.55095344,108970.0,108960.0,0.10073545]
[1760910242458,0.34173377,108970.0,108960.0,0.10073545]
[1760910242659,0.52686989,108970.0,108960.0,0.10073545]
[1760910243050,0.52686989,108970.0,108960.0,0.12833626]
[1760910243421,0.52686989,108970.0,108960.0,0.31188985]
[1760910243630,0.34159937,108970.0,108960.0,0.31188985]
[1760910244037,0.34,108970.0,108960.0,0.31188985]
[1760910244243,3.0,108970.0,108960.0,0.31188985]
[1760910244444,3.18353675,108970.0,108960.0,0.31188985]
[1760910244657,0.18353675,108970.0,108960.0,0.31188985]
[1760910245410,0.18353675,108970.0,108960.0,0.31288985]
[1760910245849,0.52353675,108970.0,108960.0,0.31388985]
[1760910246836,0.34,108970.0,108960.0,0.31388985]
[1760910248523,0.52353675,108970.0,108960.0,0.31388985]
[1760910253527,0.34,108970.0,108960.0,0.31388985]
[1760910253741,0.34,108970.0,108960.0,0.42908985]
[1760910255244,0.52353675,108970.0,108960.0,0.42908985]
[1760910261821,0.34,108970.0,108960.0,0.42908985]
[1760910262526,0.52353675,108970.0,108960.0,0.42908985]
[1760910263070,0.34,108970.0,108960.0,0.42908985]
[1760910263456,0.34,108970.0,108960.0,0.42904985]
[1760910264324,0.52353675,108970.0,108960.0,0.42904985]
[1760910264455,0.52353675,108970.0,108960.0,0.31388985]
[1760910264667,0.52353675,108970.0,108960.0,0.42904985]
[1760910267681,0.52353675,108970.0,108960.0,0.31388985]
[1760910267897,0.52353675,108970.0,108960.0,0.42904985]
[1760910269102,0.34,108970.0,108960.0,0.42904985]
[1760910271657,0.52353675,108970.0,108960.0,0.42904985]
[1760910272625,0.18353675,108970.0,108960.0,0.42904985]
[1760910274717,0.18353443,108980.0,108960.0,0.42904985]
[1760910274931,0.20073284,108980.0,108960.0,0.4283144]
[1760910275566,0.20073284,108980.0,108960.0,0.4263144]
[1760910275782,0.20073284,108980.0,108960.0,0.3111544]
[1760910276169,0.20073284,108980.0,108960.0,0.4263144]
[1760910276293,0.20073284,108980.0,108960.0,0.3111544]
[1760910276511,0.20073284,108980.0,108960.0,0.4263144]
[1760910280186,0.54073284,108980.0,108970.0,0.00143373]
[1760910290399,0.5493361,108980.0,108970.0,0.00143373]
[1760910295139,0.54073284,108980.0,108970.0,0.00143373]
[1760910295387,0.54933479,108980.0,108970.0,0.00143373]
[1760910305052,0.54073284,108980.0,108970.0,0.00143373]
[1760910306809,0.54073826,108980.0,108970.0,0.00143373]
[1760910311145,0.54073826,108980.0,108970.0,0.18497048]
[1760910311328,0.20073826,108980.0,108970.0,0.18497048]
[1760910311657,0.20073826,108980.0,108970.0,0.2125674]
[1760910312669,0.18353443,108980.0,108970.0,0.2125674]
[1760910314187,0.20869813,108990.0,108970.0,0.2125674]
[1760910314353,3.0,108980.0,108970.0,0.21113367]
[1760910315751,0.19435488,108990.0,108970.0,0.21113367]
[1760910315883,3.0,108980.0,108970.0,0.21113367]
[1760910316301,3.18351991,108980.0,108970.0,0.21113367]
[1760910316502,0.18351991,108980.0,108970.0,0.21113367]
[1760910319304,3.0,108980.0,108970.0,0.21113367]
[1760910320489,0.19275561,108990.0,108970.0,0.21113367]
[1760910320636,0.20993929,108990.0,108970.0,0.21113367]
[1760910320836,0.01723304,108990.0,108970.0,0.21113367]
[1760910321041,0.20994197,108990.0,108970.0,0.21113367]
[1760910321242,0.19275829,108990.0,108970.0,0.21113367]
[1760910321447,0.19275829,108990.0,108970.0,0.18353675]
[1760910321670,0.19275829,108990.0,108980.0,0.02759692]
[1760910324828,0.19275829,108990.0,108980.0,0.21111683]
[1760910325258,0.19275829,108990.0,108980.0,0.02759692]
[1760910327074,0.19275829,108990.0,108980.0,0.21111683]
[1760910328657,0.19275829,108990.0,108980.0,0.32623683]
[1760910332644,0.19275829,108990.0,108980.0,0.21111683]
[1760910348374,4.936e-05,108990.0,108980.0,0.21111683]
[1760910348584,0.18355243,108990.0,108980.0,0.21111683]
[1760910360985,4.936e-05,108990.0,108980.0,0.21111683]
[1760910374730,3.0,108990.0,108980.0,0.21111683]
[1760910388141,3.0,108990.0,108980.0,0.32623683]
[1760910389344,0.18350307,108990.0,108980.0,0.32623683]
[1760910391568,3.0,108990.0,108980.0,0.32623683]
[1760910392375,0.18350307,108990.0,108980.0,0.32623683]
[1760910393042,3.0,108990.0,108980.0,0.32623683]
[1760910402814,0.5450718,109000.0,108980.0,0.32623683]
[1760910403134,0.57089071,109000.0,108980.0,0.32623683]
[1760910403303,0.57089071,109000.0,108980.0,0.29863991]
[1760910403490,0.57089071,109000.0,108990.0,0.02759423]
[1760910404601,0.57088972,109000.0,108990.0,0.2294476]
[1760910404751,0.21649811,109000.0,108990.0,0.2110973]
[1760910404966,0.1906792,109000.0,108990.0,0.2110973]
[1760910405171,0.00719297,109000.0,108990.0,0.2110973]
[1760910406850,0.00719297,109000.0,108990.0,0.2120973]
[1760910407560,0.00719297,109000.0,108990.0,0.2130973]
[1760910450969,3.18347427,109010.0,109000.0,0.18348623]
[1760910451174,3.21089854,109010.0,109000.0,0.18348623]
[1760910451576,3.2092995,109010.0,109000.0,0.21107833]
[1760910452907,3.2092995,109010.0,109000.0,0.0275921]
[1760910454403,3.21089854,109010.0,109000.0,0.0275921]
[1760910455384,3.23449899,109010.0,109000.0,0.0275921]
[1760910457858,3.57453899,109010.0,109000.0,0.0275921]
[1760910465891,3.39106472,109010.0,109000.0,0.0275921]
[1760910466383,3.57453899,109010.0,109000.0,0.0275921]
[1760910468677,3.57458834,109010.0,109000.0,0.0275921]
[1760910468827,3.0,109000.0,108990.0,0.18350307]
[1760910469039,3.0,109000.0,108990.0,0.21109517]
[1760910469477,3.18348623,109000.0,108990.0,0.21109517]
[1760910469684,0.18348623,109000.0,108990.0,0.21109517]
[1760910470100,0.18348623,109000.0,108990.0,0.21209517]
[1760910470946,3.18348623,109000.0,108990.0,0.21309517]
[1760910471165,0.18348623,109000.0,108990.0,0.21309517]
[1760910482665,0.18348623,109000.0,108990.0,0.0295921]
[1760910483138,0.18348623,109000.0,108990.0,0.002]
[1760910483634,0.18348623,109000.0,108990.0,0.001]
[1760910483935,0.18348623,109000.0,108980.0,0.35900945]
[1760910484084,0.18348623,109000.0,108980.0,0.47408945]
[1760910484489,0.18350307,108990.0,108980.0,0.17549294]
[1760910484842,0.18350307,108990.0,108980.0,0.26298]
[1760910485727,0.18350307,108990.0,108980.0,0.1479]
[1760910486435,0.18351991,108980.0,108970.0,0.32621076]
[1760910488875,0.18351991,108980.0,108970.0,0.32721076]
[1760910489077,0.18351991,108980.0,108970.0,0.32821076]
[1760910492327,0.52351991,108980.0,108970.0,0.30061539]
[1760910494244,0.52351991,108980.0,108970.0,0.002]
[1760910495231,0.52351991,108980.0,108970.0,0.001]
[1760910495657,0.18353675,108970.0,108960.0,0.57413275]
[1760910495862,0.18353675,108970.0,108960.0,0.42623275]
[1760910496429,0.52353675,108970.0,108960.0,0.42623275]
[1760910496644,0.52353675,108970.0,108960.0,0.28355298]
[1760910496852,0.52353675,108970.0,108960.0,0.39868234]
[1760910497493,0.52353675,108970.0,108960.0,0.28360234]
[1760910497681,0.52353675,108970.0,108960.0,0.39868234]
[1760910497888,0.52353675,108970.0,108960.0,0.39968234]
[1760910498043,0.52353675,108970.0,108960.0,0.40068234]
[1760910500148,0.52353675,108970.0,108960.0,0.21712936]
[1760910503743,0.52353675,108970.0,108960.0,0.40068295]
[1760910511228,0.52353675,108970.0,108960.0,0.21712936]
[1760910512237,0.52353675,108970.0,108960.0,0.10204936]
[1760910513076,0.52353675,108970.0,108960.0,0.10104936]
[1760910513749,0.52353675,108970.0,108960.0,0.10004936]
[1760910519671,0.52513611,108970.0,108960.0,0.10004936]
[1760910537407,0.54232695,108970.0,108960.0,0.10004936]
[1760910541041,0.54233432,108970.0,108960.0,0.10004936]
[1760910546028,0.55093742,108970.0,108960.0,0.10004936]
[1760910560176,0.57854138,108970.0,108960.0,0.10004936]
[1760910561154,0.57854649,108970.0,108960.0,0.10004936]
[1760910562062,0.3747671,108970.0,108960.0,0.10004936]
[1760910562833,0.55830385,108970.0,108960.0,0.10004936]
[1760910563397,0.53069989,108970.0,108960.0,0.10004936]
[1760910564261,0.53069989,108970.0,108960.0,0.12765332]
[1760910568155,0.21094253,108970.0,108960.0,0.12765332]
[1760910570106,0.55094253,108970.0,108960.0,0.12765332]
[1760910586695,0.55094069,108970.0,108960.0,0.12765332]
[1760910596958,0.55093367,108970.0,108960.0,0.12765332]
[1760910600856,3.55093367,108970.0,108960.0,0.12765332]
[1760910600974,3.55093367,108970.0,108960.0,0.10004936]
[1760910601174,3.57854159,108970.0,108960.0,0.10004936]
[1760910601405,0.00917936,108940.0,108920.0,0.18362015]
[1760910601603,0.1836044,108930.0,108920.0,0.18367027]
[1760910601801,0.1836044,108930.0,108920.0,0.11512927]
[1760910602177,0.1836044,108930.0,108920.0,0.14273922]
[1760910603447,0.1836044,108930.0,108920.0,0.32736022]
[1760910603861,0.5236044,108930.0,108920.0,0.14473922]
[1760910604245,0.55510886,108930.0,108920.0,0.02965922]
[1760910604452,0.55510886,108930.0,108920.0,0.14473922]
[1760910605441,0.55510886,108930.0,108920.0,0.32836022]
[1760910607275,0.37150446,108930.0,108920.0,0.32836022]
[1760910607709,0.55510886,108930.0,108920.0,0.32836022]
[1760910614322,0.37150446,108930.0,108920.0,0.32836022]
[1760910614947,0.5551086,108930.0,108920.0,0.32836022]
[1760910626198,0.5551086,108930.0,108920.0,0.21328022]
[1760910627269,0.5551086,108930.0,108920.0,0.02965922]
[1760910627464,0.5551086,108930.0,108920.0,0.32836022]
[1760910628227,0.5551086,108930.0,108920.0,0.32736022]
[1760910628756,0.5551086,108930.0,108920.0,0.32636022]
[1760910629026,0.37150446,108930.0,108920.0,0.32736022]
[1760910629177,0.5551086,108930.0,108920.0,0.32736022]
[1760910630666,0.37150446,108930.0,108920.0,0.32736022]
[1760910640035,0.03150446,108930.0,108920.0,0.32736022]
[1760910640339,3.0,108930.0,108920.0,0.32736022]
[1760910642191,0.03116244,108930.0,108920.0,0.32736022]
[1760910642419,0.19278254,108940.0,108920.0,0.32736022]
[1760910642613,3.0,108930.0,108920.0,0.32736022]
[1760910642814,3.0,108930.0,108920.0,0.29975027]
[1760910643049,3.0,108930.0,108920.0,0.32736121]
[1760910644477,2.80867876,108930.0,108920.0,0.32736121]
[1760910644682,3.0,108930.0,108920.0,0.32736121]
[1760910645806,0.03118465,108930.0,108920.0,0.32736121]
[1760910646166,3.0,108930.0,108920.0,0.32736121]
[1760910647416,0.34,108930.0,108920.0,0.32736121]
[1760910649395,0.37182871,108930.0,108920.0,0.32736121]
[1760910656601,0.03182871,108930.0,108920.0,0.32736121]
[1760910657110,3.0,108930.0,108920.0,0.32736121]
[1760910660043,3.03220578,108930.0,108920.0,0.32736121]
[1760910660252,0.03220578,108930.0,108920.0,0.32736121]
[1760910660467,0.19278254,108940.0,108920.0,0.32736121]
[1760910660631,3.0,108930.0,108920.0,0.32736121]
[1760910660831,3.0,108930.0,108920.0,0.29975027]
[1760910661037,3.0,108930.0,108920.0,0.32736121]
[1760910661630,3.0,108930.0,108920.0,0.32636121]
[1760910662182,0.18360414,108930.0,108920.0,0.32636121]
[1760910662338,0.18360414,108930.0,108920.0,0.21128121]
[1760910662738,0.18360414,108930.0,108920.0,0.21228121]
[1760910663585,3.0,108930.0,108920.0,0.21228121]
[1760910664917,3.02728864,108930.0,108920.0,0.21228121]
[1760910665099,0.02728864,108930.0,108920.0,0.21228121]
[1760910665338,3.0,108930.0,108920.0,0.21228121]
[1760910665544,0.18360414,108930.0,108920.0,0.21228121]
[1760910667274,0.18360414,108930.0,108920.0,0.32736121]
[1760910670175,0.21078934,108930.0,108920.0,0.32736121]
[1760910672161,0.0271852,108930.0,108920.0,0.32736121]
[1760910672431,0.19278254,108940.0,108920.0,0.32736121]
[1760910672640,3.0,108930.0,108920.0,0.32736121]
[1760910672771,3.0,108930.0,108920.0,0.29975027]
[1760910673137,3.0,108930.0,108920.0,0.32736185]
[1760910673971,3.0,108930.0,108920.0,0.32636185]
[1760910675057,0.0272999,108930.0,108920.0,0.32736185]
[1760910675271,3.0,108930.0,108920.0,0.32736185]
[1760910676869,3.34,108930.0,108920.0,0.32736185]
[1760910677078,0.34,108930.0,108920.0,0.32736185]
[1760910679206,0.52360414,108930.0,108920.0,0.32736185]
[1760910679454,0.55134192,108930.0,108920.0,0.32736185]
[1760910682240,0.21134192,108930.0,108920.0,0.32736185]
[1760910689800,0.55134192,108930.0,108920.0,0.32736185]
[1760910690654,0.36773778,108930.0,108920.0,0.32736185]
[1760910698409,3.0,108930.0,108920.0,0.32736185]
[1760910698590,3.02758107,108930.0,108920.0,0.32736185]
[1760910698769,0.02758107,108930.0,108920.0,0.32736185]
[1760910698974,0.19278254,108940.0,108920.0,0.32736185]
[1760910699235,0.20997489,108940.0,108920.0,0.32736185]
[1760910699435,0.20997489,108940.0,108920.0,0.29975027]
[1760910699643,0.20997489,108940.0,108930.0,0.02761158]
[1760910704238,0.23764034,108940.0,108930.0,0.02761158]
[1760910705530,0.23764034,108940.0,108930.0,0.21121572]
[1760910705742,0.22044799,108940.0,108930.0,0.21121572]
[1760910710241,0.22044799,108940.0,108920.0,0.26784413]
[1760910710647,0.22044799,108940.0,108930.0,0.21121572]
[1760910719768,0.02766545,108940.0,108930.0,0.21121572]
[1760910719973,0.03684481,108940.0,108930.0,0.21121572]
[1760910720178,0.00917936,108940.0,108930.0,0.21121572]
[1760910720915,0.19278254,108940.0,108930.0,0.21121572]
[1760910721977,0.22005602,108940.0,108930.0,0.21121572]
[1760910723736,0.02727348,108940.0,108930.0,0.21121572]
[1760910724131,0.00159958,108950.0,108940.0,0.18358729]
[1760910724417,0.0389298,108950.0,108940.0,0.29866729]
[1760910724595,0.53273296,108960.0,108950.0,0.18357044]
[1760910724804,0.54992119,108960.0,108950.0,0.18357044]
[1760910725213,0.53273296,108960.0,108950.0,0.18357044]
[1760910725420,0.54991734,108960.0,108950.0,0.18357044]
[1760910725794,0.54991734,108960.0,108950.0,0.21117811]
[1760910728046,0.58782955,108960.0,108950.0,0.21117811]
[1760910729235,0.57064517,108960.0,108950.0,0.21117811]
[1760910730734,0.37791221,108960.0,108950.0,0.21117811]
[1760910731557,0.03791221,108960.0,108950.0,0.21117811]
[1760910731961,3.0,108960.0,108950.0,0.21117811]
[1760910732764,3.03803772,108960.0,108950.0,0.21117811]
[1760910732970,0.03803772,108960.0,108950.0,0.21117811]
[1760910733216,0.53953158,108970.0,108950.0,0.21117811]
[1760910733415,3.0,108960.0,108950.0,0.21117811]
[1760910737764,0.03735427,108960.0,108950.0,0.21117811]
[1760910738163,3.0,108960.0,108950.0,0.21117811]
[1760910777628,2.80684397,108960.0,108950.0,0.21117811]
[1760910777826,3.0,108960.0,108950.0,0.21117811]
[1760910797905,0.23566723,108970.0,108950.0,0.21117811]
[1760910798112,3.0,108960.0,108950.0,0.21117811]
[1760910804090,3.0,108960.0,108950.0,0.32621811]
[1760910828993,2.8299959,108960.0,108950.0,0.32621811]
[1760910829128,3.0,108960.0,108950.0,0.32621811]
[1760910831807,3.0,108960.0,108950.0,0.21117811]
[1760910834183,3.32,108960.0,108950.0,0.21117811]
[1760910834408,0.32,108960.0,108950.0,0.21117811]
[1760910853580,0.32,108960.0,108930.0,0.18360414]
[1760910853581,0.18358883,108940.0,108930.0,0.18360414]
[1760910853755,0.52358883,108940.0,108930.0,0.18360414]
[1760910854154,0.52358883,108940.0,108930.0,0.21121381]